bitfinex/quotes_ETHUSD_20250114
["timestamp","ask_amount","ask_price","bid_price","bid_amount"]
[1736812800730,0.7729,3142.7,3141.5,0.8009]
[1736812802561,0.7729,3142.7,3141.7,0.63104195]
[1736812803577,0.7729,3142.7,3141.8,0.29797618]
[1736812803875,3.08817543,3141.9,3141.8,0.29797618]
[1736812805175,0.7729,3142.7,3141.8,0.29797618]
[1736812805460,3.08817543,3142.1,3141.9,0.8009]
[1736812805682,3.08817543,3142.5,3141.9,0.8009]
[1736812805823,0.0275598,3142.8,3141.9,0.8009]
[1736812806033,3.08817543,3142.2,3142.0,0.03182539]
[1736812806228,3.08817543,3142.5,3142.1,0.7606]
[1736812806756,3.08817543,3142.2,3142.1,0.7606]
[1736812807559,6.99615086,3142.2,3142.0,0.29797618]
[1736812807761,7.69576595,3142.2,3142.1,0.29797618]
[1736812809352,0.8198,3142.1,3141.4,0.04337323]
[1736812809525,3.08817543,3141.5,3141.4,0.04337323]
[1736812809730,3.90797543,3141.5,3141.4,0.04337323]
[1736812810356,3.08817543,3141.5,3141.4,0.04337323]
[1736812811757,3.08817543,3141.5,3141.4,0.80397323]
[1736812811930,3.08817543,3141.5,3141.4,1.10183402]
[1736812812131,3.08817543,3141.5,3141.4,0.34123402]
[1736812814263,4.16939297,3141.5,3141.4,0.34123402]
[1736812814931,4.16939297,3141.5,3141.4,0.04337323]
[1736812817475,4.16939297,3141.5,3140.7,0.29801276]
[1736812817649,3.08817543,3140.8,3140.7,0.29801276]
[1736812817845,3.08817543,3140.8,3140.3,0.833]
[1736812818752,3.08817543,3140.8,3140.4,0.29775904]
[1736812819451,3.08817543,3140.5,3140.4,0.29775904]
[1736812820834,3.08817543,3140.5,3140.4,0.94987402]
[1736812821034,3.08817543,3140.8,3140.4,6.24171642]
[1736812821255,3.08817543,3140.8,3140.5,0.833]
[1736812821467,3.08817543,3140.8,3140.7,0.833]
[1736812821963,0.7724,3141.7,3140.7,7.29183692]
[1736812821964,3.08817543,3141.1,3140.7,7.29183692]
[1736812822289,3.08817543,3141.1,3140.8,0.86483507]
[1736812822585,3.08817543,3141.1,3140.8,0.833]
[1736812823384,0.7724,3142.2,3140.8,0.833]
[1736812823557,3.08817543,3140.9,3140.8,0.833]
[1736812823954,0.7724,3141.5,3140.8,1.13075904]
[1736812824288,3.08817543,3140.9,3140.8,1.13075904]
[1736812824489,3.08817543,3140.9,3140.8,0.29775904]
[1736812824690,3.39699297,3140.9,3140.8,0.29775904]
[1736812824861,3.08817543,3140.9,3140.8,0.29775904]
[1736812825370,3.08817543,3140.9,3140.5,0.29775904]
[1736812825569,3.08817543,3140.6,3140.5,0.29775904]
[1736812828283,3.08817543,3140.6,3140.4,0.29775904]
[1736812828662,3.08817543,3140.6,3140.5,0.7656]
[1736812829397,3.08817543,3140.9,3140.5,1.06335904]
[1736812830255,3.08817543,3140.9,3140.5,1.09519694]
[1736812830456,3.08817543,3141.2,3140.9,0.8125]
[1736812830686,3.08817543,3141.2,3141.1,3.18359]
[1736812831094,3.08817543,3141.2,3141.1,3.2249786]
[1736812831818,3.08817543,3141.2,3141.1,3.52273764]
[1736812832490,3.08817543,3141.2,3141.1,0.33914764]
[1736812833094,3.08817543,3141.2,3141.1,4.0374786]
[1736812833321,3.08817543,3141.5,3141.1,0.8538886]
[1736812833522,0.8254,3142.2,3141.2,0.03183145]
[1736812833819,0.0275598,3142.8,3141.7,3.18299]
[1736812833820,3.08817543,3141.8,3141.7,3.18299]
[1736812834193,3.08817543,3142.0,3141.8,0.8125]
[1736812834394,3.08817543,3142.0,3141.9,3.22386067]
[1736812834726,3.08817543,3142.0,3141.9,0.04108067]
[1736812835090,3.08817543,3142.0,3141.8,3.18287]
[1736812835290,3.08817543,3142.0,3141.9,0.04108067]
[1736812836083,3.08817543,3142.0,3141.6,3.18303]
[1736812836286,3.08817543,3141.7,3141.6,3.18303]
[1736812836515,3.08817543,3141.7,3141.4,3.9957]
[1736812836817,3.08817543,3141.7,3141.2,9.48051642]
[1736812836818,3.08817543,3141.7,3141.2,9.6425]
[1736812837019,3.08817543,3141.3,3141.2,3.99599]
[1736812837990,3.08817543,3141.6,3141.5,3.18318]
[1736812838406,3.08817543,3141.6,3141.3,3.18331]
[1736812838612,3.08817543,3141.6,3141.4,3.18329]
[1736812839616,3.08817543,3141.6,3141.5,0.29759003]
[1736812840509,0.8254,3142.7,3141.6,6.0725]
[1736812840707,3.08817543,3141.9,3141.6,6.0725]
[1736812841300,3.08817543,3141.9,3141.8,3.18288]
[1736812842031,3.08817543,3141.9,3141.8,3.48047003]
[1736812843140,3.08817543,3142.2,3142.1,3.18258]
[1736812843319,3.08817543,3142.5,3142.1,3.99508]
[1736812843633,3.08817543,3142.5,3142.4,3.18228]
[1736812844136,3.11573523,3142.8,3142.5,3.95824]
[1736812844296,3.11573523,3142.8,3142.4,0.29759003]
[1736812844297,3.08817543,3142.5,3142.4,0.29759003]
[1736812844730,3.92117543,3142.5,3142.4,0.29759003]
[1736812845302,7.10334543,3142.5,3142.4,0.29759003]
[1736812845515,10.19152086,3142.5,3142.4,0.29759003]
[1736812845939,0.833,3142.4,3141.2,0.7761]
[1736812846133,3.08817543,3141.5,3141.4,3.18323]
[1736812846361,3.08817543,3141.8,3141.7,3.18299]
[1736812846656,3.08817543,3142.1,3141.7,0.7836]
[1736812846962,3.08817543,3142.1,3142.0,3.19768]
[1736812847166,3.08817543,3142.1,3142.0,3.23763513]
[1736812847483,3.08817543,3142.1,3142.0,0.04745513]
[1736812847770,3.08817543,3142.1,3142.0,3.52696901]
[1736812850245,3.08817543,3142.4,3142.3,3.18231]
[1736812850440,3.08817543,3142.4,3142.3,3.18981]
[1736812850662,3.08817543,3142.4,3142.3,3.22849733]
[1736812851492,3.08817543,3142.4,3142.3,0.03868733]
[1736812851778,3.08817543,3142.4,3142.1,3.18253]
[1736812851979,3.08817543,3142.4,3142.2,0.03868733]
[1736812853094,3.08817543,3142.4,3142.2,3.22116733]
[1736812854882,3.08551203,3142.4,3142.2,3.22116733]
[1736812855646,3.08551203,3142.4,3142.3,3.18988]
[1736812856352,3.08551203,3142.4,3142.3,3.22856733]
[1736812858083,3.08551203,3142.4,3142.3,0.03868733]
[1736812858445,3.08551203,3142.4,3142.1,0.015]
[1736812858649,3.08551203,3142.4,3142.3,0.03868733]
[1736812858882,3.08551203,3142.4,3142.1,0.015]
[1736812859090,3.08551203,3142.4,3142.3,0.03837973]
[1736812859274,3.08551203,3142.4,3142.1,0.015]
[1736812859470,3.08551203,3142.4,3142.3,0.03837973]
[1736812859676,3.08551203,3142.4,3141.9,5.26]
[1736812859677,3.39406323,3142.4,3142.2,0.03710307]
[1736812859988,0.7953,3142.3,3141.9,5.26]
[1736812860175,3.08817543,3142.0,3141.9,5.2675]
[1736812860577,3.08817543,3142.0,3141.9,8.45028]
[1736812860899,3.08817543,3142.0,3141.9,3.19028]
[1736812861071,3.08817543,3142.0,3141.9,0.04083367]
[1736812861387,3.08817543,3142.0,3141.9,0.03333367]
[1736812861595,3.08817543,3142.0,3141.5,3.18318]
[1736812861777,3.08817543,3141.7,3141.6,0.03024563]
[1736812862454,4.19229297,3141.7,3141.6,0.03024563]
[1736812862654,10.37528297,3141.7,3141.6,0.03024563]
[1736812862855,0.7953,3141.3,3140.5,3.1842]
[1736812863186,3.08817543,3140.6,3140.5,3.1842]
[1736812863387,3.08817543,3140.6,3140.4,0.7837]
[1736812863778,3.08817543,3140.6,3140.5,3.1842]
[1736812863979,3.08817543,3140.6,3140.4,0.7837]
[1736812864294,3.08817543,3140.6,3140.5,0.29765363]
[1736812864896,3.08817543,3140.6,3140.5,3.48935363]
[1736812866777,3.08817543,3140.6,3140.5,3.49685363]
[1736812866977,3.08817543,3140.9,3140.8,3.99005]
[1736812867299,3.08817543,3141.2,3140.9,0.0225]
[1736812867602,3.08817543,3141.2,3141.1,3.19109]
[1736812868002,3.08817543,3141.2,3141.1,3.19859]
[1736812868158,0.7953,3142.4,3141.5,0.015]
[1736812868363,3.08817543,3142.1,3142.0,3.18268]
[1736812868784,3.08817543,3142.1,3142.0,3.19018]
[1736812868988,3.08817543,3142.1,3142.0,3.97388]
[1736812869198,3.08817543,3142.1,3142.0,3.98138]
[1736812870111,0.0275598,3142.8,3142.3,3.20488]
[1736812870112,3.08817543,3142.4,3142.3,3.20488]
[1736812870778,3.08817543,3142.4,3142.3,3.19738]
[1736812872003,3.08817543,3142.4,3142.3,3.49406034]
[1736812873924,0.0275598,3142.8,3142.7,3.19697]
[1736812874108,0.0275598,3142.8,3142.7,4.30998823]
[1736812874473,0.0275598,3142.8,3142.7,4.27817]
[1736812874710,0.0275598,3142.8,3142.7,4.57485034]
[1736812875575,0.0275598,3142.8,3142.7,3.49365034]
[1736812877109,0.0275598,3142.8,3142.5,3.18208]
[1736812877297,3.08817543,3142.6,3142.5,3.18208]
[1736812878770,3.08817543,3142.6,3142.5,3.19708]
[1736812880200,3.08817543,3142.6,3142.5,3.49326252]
[1736812880604,3.08817543,3142.6,3142.5,0.29618252]
[1736812880822,4.22104895,3142.6,3142.5,0.29618252]
[1736812881508,4.22104895,3142.6,3141.8,5.26]
[1736812881671,3.08817543,3142.1,3141.6,3.18304]
[1736812881866,3.08817543,3141.8,3141.4,3.18326]
[1736812882090,3.08817543,3141.4,3141.3,3.93809]
[1736812882270,3.08817543,3141.4,3140.3,0.7547]
[1736812882271,0.8213,3141.3,3140.3,0.7547]
[1736812882483,3.08817543,3140.4,3140.3,3.1844]
[1736812883204,3.08817543,3140.4,3140.3,3.2069]
[1736812883382,3.08817543,3140.4,3140.3,3.1919]
[1736812884096,3.08817543,3140.4,3140.3,3.2069]
[1736812884298,3.08817543,3140.4,3140.3,3.1844]
[1736812884472,3.08817543,3140.4,3139.9,0.7547]
[1736812884668,3.08817543,3140.1,3140.0,3.21742397]
[1736812884968,3.0554225,3140.1,3140.0,3.83269474]
[1736812885171,3.0554225,3140.1,3140.0,3.81769474]
[1736812885570,3.0554225,3140.1,3140.0,3.83269474]
[1736812885769,3.0554225,3140.1,3140.0,3.81769474]
[1736812885996,3.0554225,3140.1,3140.0,0.63302474]
[1736812886806,3.0554225,3140.1,3139.9,3.1848]
[1736812887106,3.0554225,3140.1,3139.9,3.81395428]
[1736812888731,0.8104,3140.0,3139.4,0.6529477]
[1736812888885,3.08817543,3139.5,3139.4,0.6529477]
[1736812890216,3.08817543,3139.5,3139.4,0.6679477]
[1736812891003,3.08817543,3139.5,3139.3,0.64318793]
[1736812892308,3.08817543,3139.5,3139.4,0.015]
[1736812892823,3.08817543,3139.5,3139.4,3.20032]
[1736812893120,3.08817543,3139.5,3139.4,3.22828449]
[1736812894317,3.08817543,3139.5,3139.4,3.23578449]
[1736812894520,3.08817543,3139.5,3139.4,4.01238449]
[1736812894687,3.08817543,3139.5,3139.4,3.22828449]
[1736812895931,3.08817543,3139.5,3139.4,3.23578449]
[1736812896140,3.08817543,3139.5,3139.4,6.23578449]
[1736812897142,3.08817543,3139.8,3139.7,3.98411]
[1736812897433,3.08817543,3140.1,3140.0,3.19971]
[1736812897792,3.08817543,3140.1,3140.0,0.02970483]
[1736812897991,3.08817543,3140.1,3139.6,3.18509]
[1736812898187,3.08817543,3139.7,3139.6,3.20759]
[1736812898623,3.08817543,3140.0,3139.9,3.19976]
[1736812900441,3.58817543,3140.0,3139.9,3.19976]
[1736812901908,3.58817543,3140.0,3139.7,3.18496]
[1736812902104,3.58817543,3140.0,3139.3,4.60519793]
[1736812902105,3.08817543,3139.6,3139.3,3.82851793]
[1736812902435,3.08817543,3139.6,3139.4,3.18529]
[1736812903105,3.08817543,3139.6,3139.5,3.20022]
[1736812903753,3.08817543,3139.6,3139.5,3.20772]
[1736812905417,3.89857543,3139.6,3139.3,3.82851793]
[1736812905745,3.08817543,3139.6,3139.3,0.64318793]
[1736812906106,3.08817543,3139.6,3139.4,0.04307334]
[1736812906746,3.08817543,3139.6,3139.5,3.20022]
[1736812907150,3.08817543,3139.6,3139.5,3.20772]
[1736812907450,3.08817543,3139.6,3139.5,3.23579334]
[1736812909269,3.08817543,3139.6,3139.5,3.22079334]
[1736812909567,7.00585086,3139.6,3139.5,0.02807334]
[1736812909734,7.3146684,3139.6,3138.6,3.18607]
[1736812909940,3.0700865,3138.7,3138.6,3.18607]
[1736812910149,3.0700865,3138.7,3138.6,6.83519454]
[1736812910337,3.0700865,3138.7,3138.6,6.82019454]
[1736812911957,3.0700865,3138.7,3138.6,6.83519454]
[1736812919881,3.0700865,3138.7,3138.6,6.8633356]
[1736812920377,3.58817543,3139.0,3138.7,3.0225]
[1736812920549,3.58817543,3139.0,3138.9,3.20082]
[1736812920744,3.58817543,3139.0,3138.9,3.20832]
[1736812920745,0.5,3139.0,3138.9,3.20832]
[1736812920981,0.39731863,3139.0,3138.9,7.00592]
[1736812921183,0.39731863,3139.0,3138.9,7.58474386]
[1736812921435,3.08817543,3139.6,3139.5,3.18522]
[1736812921550,3.08817543,3139.6,3139.5,3.20772]
[1736812921745,3.08817543,3139.6,3139.5,3.23645729]
[1736812923379,0.5,3140.0,3139.8,3.19991]
[1736812923584,3.08817543,3139.9,3139.8,3.19241]
[1736812923885,3.08817543,3139.9,3139.8,3.2281376]
[1736812926198,3.08817543,3139.9,3139.8,0.0282276]
[1736812926798,3.08817543,3139.9,3139.7,3.18495]
[1736812927102,3.08817543,3139.9,3139.8,0.0282276]
[1736812927401,3.08817543,3139.9,3139.7,3.18495]
[1736812927604,3.08817543,3139.9,3139.8,0.0282276]
[1736812927813,3.08817543,3139.9,3139.8,3.2131376]
[1736812928012,3.08817543,3139.9,3139.8,3.18491]
[1736812928171,3.08817543,3139.9,3139.8,3.2131376]
[1736812931077,3.08817543,3139.9,3139.8,3.2281376]
[1736812931769,3.08817543,3139.9,3139.8,3.2356376]
[1736812931971,0.5,3140.0,3139.9,3.20731]
[1736812933417,0.5,3140.0,3139.9,6.20731]
[1736812935630,0.5,3140.0,3139.9,11.46731]
[1736812935827,0.5,3140.0,3139.9,12.80551]
[1736812936138,0.01302104,3140.9,3140.8,6.2064]
[1736812936285,0.01302104,3140.9,3140.8,6.23823472]
[1736812936484,0.01302104,3140.9,3140.8,12.28643472]
[1736812936697,0.01302104,3140.9,3140.8,12.2546]
[1736812937004,0.01302104,3140.9,3140.8,13.1236]
[1736812937183,3.08817543,3142.1,3142.0,3.18261]
[1736812937709,3.08817543,3142.4,3142.3,3.18238]
[1736812938410,3.08817543,3142.4,3142.3,3.19738]
[1736812938609,3.08817543,3142.4,3142.3,3.20488]
[1736812940032,3.39699297,3142.4,3141.8,5.26]
[1736812940254,3.08817543,3141.9,3141.8,5.26]
[1736812940457,3.08817543,3141.9,3141.8,8.45788]
[1736812941546,3.08817543,3141.9,3141.8,5.26]
[1736812941747,3.08817543,3141.9,3141.4,3.0075]
[1736812941748,3.39699297,3141.9,3141.6,3.18306]
[1736812941934,0.8051,3141.8,3141.2,0.0075]
[1736812942130,3.08817543,3141.5,3140.8,5.31821992]
[1736812942334,3.08817543,3141.2,3140.8,5.31821992]
[1736812942660,3.08817543,3141.2,3141.1,3.18359]
[1736812943158,3.08817543,3141.2,3140.9,3.18378]
[1736812943531,3.08817543,3141.2,3141.0,0.015]
[1736812944430,3.08817543,3141.2,3140.9,3.18378]
[1736812944431,0.8051,3141.1,3140.8,0.70366293]
[1736812944630,3.08817543,3140.9,3139.9,2.0]
[1736812944828,3.08817543,3140.5,3140.4,3.1843]
[1736812945534,3.08817543,3140.8,3140.7,3.199]
[1736812946340,3.08817543,3141.1,3141.0,3.19119]
[1736812946940,3.08817543,3141.1,3141.0,0.0075]
[1736812947257,3.08817543,3141.1,3141.0,3.19119]
[1736812950767,3.08817543,3141.7,3141.6,3.19809]
[1736812951748,3.08817543,3142.0,3141.9,3.18273]
[1736812952264,3.08817543,3142.3,3142.2,3.18998]
[1736812954270,3.08817543,3142.3,3142.2,0.0075]
[1736812954471,3.08817543,3142.3,3142.0,3.18263]
[1736812955178,3.08817543,3142.3,3141.9,0.015]
[1736812955741,3.08817543,3142.0,3141.9,0.015]
[1736812956746,3.08817543,3142.0,3141.9,3.19773]
[1736812957452,0.8164,3141.9,3141.7,5.26]
[1736812957658,0.8164,3141.9,3141.1,8.44351]
[1736812957868,3.08817543,3141.2,3141.1,3.18351]
[1736812958066,3.08817543,3141.2,3140.9,3.18374]
[1736812958280,3.08817543,3141.0,3140.9,6.19874]
[1736812958581,3.08817543,3141.0,3140.9,3.19874]
[1736812959182,3.08817543,3141.0,3140.8,8.44383]
[1736812959350,3.47863297,3141.0,3140.8,5.26]
[1736812960068,3.90457543,3140.9,3140.0,3.18469]
[1736812960273,3.08817543,3140.1,3139.8,3.18488]
[1736812960575,3.39699297,3140.1,3139.2,3.18545]
[1736812960773,3.08817543,3139.3,3138.6,3.18609]
[1736812960975,3.07877098,3138.7,3138.5,3.83208342]
[1736812961184,3.07877098,3138.7,3138.5,3.18619]
[1736812961350,3.74965597,3138.6,3138.5,3.18619]
[1736812961543,3.74965597,3138.6,3137.7,16.09]
[1736812961749,3.74965597,3138.3,3137.7,14.97917744]
[1736812962090,3.74965597,3138.3,3138.1,3.18663]
[1736812962883,3.74965597,3138.3,3138.2,3.18654]
[1736812963288,3.74965597,3138.3,3138.2,3.20154]
[1736812965089,3.74965597,3138.3,3138.2,3.20904]
[1736812965318,0.8164,3139.2,3138.3,0.015]
[1736812965319,3.74965597,3138.6,3138.3,0.015]
[1736812965497,3.74965597,3138.6,3138.5,3.18623]
[1736812967117,3.68599515,3138.6,3138.5,3.18623]
[1736812967409,3.74965597,3138.9,3138.8,3.18593]
[1736812967799,3.74965597,3138.9,3138.8,3.21650497]
[1736812968383,3.74965597,3138.9,3138.8,0.03057497]
[1736812968694,3.74965597,3138.9,3138.7,3.18597]
[1736812968895,3.74965597,3138.9,3138.8,0.03057497]
[1736812969280,3.74965597,3138.9,3138.7,3.18597]
[1736812969500,3.74965597,3138.9,3138.8,0.03057497]
[1736812970168,3.74965597,3138.9,3138.7,38.18597]
[1736812970370,3.74965597,3138.9,3138.8,0.03057497]
[1736812970570,3.74965597,3138.9,3138.7,38.18597]
[1736812970873,3.74965597,3138.9,3138.8,3.21650497]
[1736812971178,3.74965597,3138.9,3138.8,0.03057497]
[1736812971395,3.74965597,3138.9,3138.6,38.18611]
[1736812971710,3.74965597,3138.9,3138.8,0.03057497]
[1736812972306,3.74965597,3138.9,3138.6,3.18611]
[1736812972505,3.74965597,3138.9,3138.8,0.03057497]
[1736812972968,3.74965597,3138.9,3138.6,3.18611]
[1736812973172,3.74965597,3138.9,3138.8,0.03057497]
[1736812973371,3.74965597,3138.9,3138.3,35.0]
[1736812973372,4.12462157,3138.9,3138.3,35.0]
[1736812973602,3.74965597,3138.4,3138.3,3.18642]
[1736812974680,3.74965597,3138.4,3137.9,0.62526526]
[1736812974882,3.74965597,3138.4,3137.8,35.62923068]
[1736812975089,3.74965597,3138.4,3138.3,3.18643]
[1736812976404,3.74965597,3138.4,3137.9,3.0]
[1736812976575,3.74965597,3138.4,3138.1,3.1866]
[1736812977504,3.74965597,3138.4,3137.9,0.0075]
[1736812977823,3.74965597,3138.0,3137.9,3.18679]
[1736812978315,3.74965597,3138.0,3137.7,3.24529744]
[1736812978516,3.74965597,3138.0,3137.8,3.18693]
[1736812978717,3.74965597,3138.0,3137.6,3.18709]
[1736812978918,0.7953,3138.1,3137.6,3.18709]
[1736812978919,3.74965597,3137.7,3137.6,3.18709]
[1736812981118,3.74965597,3138.0,3137.9,3.18677]
[1736812981319,3.74965597,3138.0,3137.7,3.20201]
[1736812981623,3.74965597,3138.0,3137.8,3.21809211]
[1736812982086,3.74965597,3138.0,3137.8,0.03116211]
[1736812982493,3.74965597,3138.0,3137.8,3.18691]
[1736812982820,3.74965597,3138.0,3137.9,3.21816577]
[1736812983186,3.74965597,3138.0,3137.9,0.03132577]
[1736812983583,3.74965597,3138.4,3138.0,0.015]
[1736812983788,3.74965597,3138.4,3138.3,3.18643]
[1736812984310,3.74965597,3138.4,3138.3,3.21792908]
[1736812984706,3.74965597,3138.4,3138.3,3.23292908]
[1736812985127,3.74965597,3138.7,3138.4,0.0075]
[1736812985328,3.74965597,3138.7,3138.6,3.18603]
[1736812985528,3.74965597,3138.7,3138.5,0.0311236]
[1736812985687,3.74965597,3138.6,3138.2,5.26]
[1736812985883,3.74965597,3138.3,3138.2,5.26]
[1736812987837,3.74965597,3138.3,3138.2,8.46154]
[1736812988318,3.74965597,3138.3,3138.2,5.26]
[1736812988520,4.54495597,3138.3,3138.2,5.26]
[1736812989399,3.89086927,3138.3,3137.9,3.18681]
[1736812990328,3.89086927,3138.3,3138.0,3.18672]
[1736812990527,3.89086927,3138.3,3137.5,5.26]
[1736812990528,3.4846562,3138.2,3137.5,5.26]
[1736812990690,0.7953,3137.7,3137.5,5.26]
[1736812991132,0.7953,3137.7,3137.5,8.44724]
[1736812991713,3.09556927,3137.8,3137.6,0.015]
[1736812992040,3.09556927,3137.8,3137.7,3.20204]
[1736812992199,3.09556927,3138.1,3138.0,3.20174]
[1736812993442,6.09556927,3139.5,3138.0,3.20174]
[1736812993443,3.74954041,3138.9,3138.6,0.015]
[1736812993628,5.39,3140.0,3138.8,3.18583]
[1736812993629,3.74954041,3139.2,3138.8,3.18583]
[1736812993829,3.74954041,3139.2,3139.1,3.20062]
[1736812995011,3.74954041,3139.2,3138.7,5.26]
[1736812995218,3.74954041,3138.8,3138.7,3.18601]
[1736812995527,0.7686,3139.0,3138.7,3.20101]
[1736812995747,3.74954041,3139.7,3139.0,0.8283]
[1736812995911,3.74954041,3139.7,3139.6,3.18511]
[1736812996309,3.74954041,3139.7,3139.6,0.02934129]
[1736812996599,4.20135445,3139.7,3138.8,5.26]
[1736812996747,3.74954041,3138.9,3138.6,3.1861]
[1736812996922,3.74954041,3138.9,3138.4,5.26]
[1736812997121,3.74954041,3138.6,3138.5,3.19373]
[1736812997321,3.74954041,3138.6,3138.5,3.20873]
[1736812997628,3.74954041,3138.6,3138.5,3.20123]
[1736812997934,3.74954041,3138.9,3138.8,3.18593]
[1736812999340,3.74954041,3139.3,3138.9,0.0075]
[1736812999532,3.74954041,3139.3,3139.2,3.18545]
[1736813000316,3.74954041,3139.3,3139.2,3.20045]
[1736813000521,3.74954041,3139.6,3139.5,3.18522]
[1736813001435,3.74954041,3139.6,3139.5,3.20022]
[1736813002165,3.71835104,3140.7,3139.3,3.18542]
[1736813002166,3.74954041,3139.9,3139.8,3.19991]
[1736813002455,3.74954041,3139.9,3139.8,3.20741]
[1736813002623,3.74954041,3140.2,3140.1,3.19961]
[1736813002816,3.74954041,3140.5,3140.4,3.1843]
[1736813003050,3.74954041,3140.8,3140.5,0.015]
[1736813003261,3.74954041,3140.8,3140.7,3.2065]
[1736813003584,3.74954041,3140.8,3140.7,3.199]
[1736813004661,3.74954041,3141.1,3140.8,0.0225]
[1736813004825,3.74954041,3141.1,3141.0,3.20619]
[1736813007255,3.74954041,3141.4,3141.3,3.19839]
[1736813008146,3.74954041,3141.4,3141.3,3.20589]
[1736813009876,3.74954041,3141.7,3141.6,3.19809]
[1736813010290,0.8323,3142.0,3141.8,3.18281]
[1736813010291,4.58184041,3142.0,3141.8,3.18281]
[1736813010575,3.74954041,3142.0,3141.8,0.0225]
[1736813011557,3.74954041,3142.0,3141.9,3.19778]
[1736813011947,3.74954041,3142.3,3142.0,0.015]
[1736813012153,3.74954041,3142.3,3141.9,0.0225]
[1736813012354,3.74954041,3142.3,3142.1,0.015]
[1736813012878,3.74954041,3142.3,3142.2,3.19748]
[1736813013449,3.74954041,3142.3,3142.2,3.20498]
[1736813013957,3.74954041,3142.6,3142.5,3.19717]
[1736813017787,3.74954041,3142.6,3142.2,5.26]
[1736813017953,0.8323,3142.5,3142.2,5.26]
[1736813018402,3.74954041,3142.6,3142.4,3.18228]
[1736813018603,3.74954041,3142.6,3142.5,3.19717]
[1736813019303,3.74954041,3142.6,3142.2,5.26]
[1736813019600,3.74954041,3142.6,3141.9,2.0]
[1736813019601,0.8323,3142.5,3141.9,5.26]
[1736813019806,3.74954041,3142.1,3141.9,5.26]
[1736813020186,3.74954041,3142.1,3142.0,0.015]
[1736813020593,3.74954041,3142.1,3142.0,3.19768]
[1736813020980,3.74954041,3142.1,3142.0,3.20518]
[1736813021698,3.74954041,3142.1,3141.9,8.44277]
[1736813022008,3.74954041,3142.1,3141.9,5.26]
[1736813022766,0.8323,3142.0,3141.9,5.26]
[1736813022970,0.8323,3141.8,3141.0,3.18362]
[1736813023270,3.74954041,3141.1,3141.0,3.18362]
[1736813024015,3.74954041,3141.1,3141.0,3.19862]
[1736813024306,3.74954041,3141.1,3140.5,1.46532517]
[1736813024512,3.74954041,3141.1,3140.9,3.18372]
[1736813025367,3.74954041,3141.1,3141.0,3.19869]
[1736813025612,3.74954041,3141.1,3141.0,3.20619]
[1736813026475,3.74954041,3141.4,3141.3,6.20589]
[1736813026811,3.74954041,3141.7,3141.6,3.20559]
[1736813027400,3.74954041,3141.7,3141.6,3.19809]
[1736813027707,3.74954041,3141.7,3141.6,0.015]
[1736813027911,3.74954041,3141.7,3141.6,3.19809]
[1736813028112,3.74954041,3142.2,3141.9,0.0225]
[1736813028322,3.74954041,3142.2,3142.1,3.19758]
[1736813029389,3.74954041,3142.2,3141.8,5.26]
[1736813029581,3.74954041,3141.9,3141.8,8.44284]
[1736813030104,3.74954041,3141.9,3140.9,3.18372]
[1736813030105,4.94099445,3141.9,3140.9,3.18372]
[1736813030308,3.74954041,3141.0,3140.8,5.26]
[1736813031030,3.74954041,3141.0,3140.5,3.18419]
[1736813031232,3.74954041,3140.6,3140.5,3.18419]
[1736813032302,3.74954041,3140.6,3140.5,3.20669]
[1736813033880,3.74954041,3140.6,3140.5,6.20669]
[1736813034523,3.74954041,3140.6,3140.5,11.46669]
[1736813035491,0.8165,3141.2,3140.5,11.46669]
[1736813035492,3.74954041,3140.9,3140.8,3.2064]
[1736813035696,3.74954041,3140.9,3140.8,8.4664]
[1736813035892,3.74954041,3141.2,3140.8,5.2825]
[1736813036225,3.74954041,3141.2,3141.1,3.20609]
[1736813036712,3.74954041,3141.5,3141.2,0.0225]
[1736813037023,3.74954041,3141.5,3141.4,3.19829]
[1736813038525,3.74954041,3141.5,3141.4,8.46579]
[1736813040525,3.74954041,3141.8,3141.7,3.20549]
[1736813041310,3.74954041,3141.8,3141.7,3.19799]
[1736813041487,3.74954041,3141.8,3141.7,0.015]
[1736813041887,3.74954041,3141.8,3141.7,3.19799]
[1736813042333,3.74954041,3141.8,3141.4,5.26]
[1736813042528,3.74954041,3141.5,3141.4,5.26]
[1736813043328,3.74954041,3141.5,3141.2,0.63796757]
[1736813044000,3.74954041,3141.5,3140.9,8.44379]
[1736813044001,0.795,3141.4,3140.9,5.26]
[1736813044205,4.12449445,3141.5,3140.4,5.26]
[1736813044206,0.79358265,3140.9,3140.4,5.26]
[1736813044405,3.74954041,3140.5,3140.4,8.4443]
[1736813044705,3.74954041,3140.5,3140.4,3.1918]
[1736813045088,3.74954041,3140.5,3140.4,3.1993]
[1736813045290,3.74954041,3140.5,3140.4,3.1843]
[1736813045700,3.74954041,3140.5,3140.4,3.2068]
[1736813045906,3.74954041,3140.5,3140.4,3.1843]
[1736813046139,3.74954041,3140.5,3140.4,3.1993]
[1736813048444,3.74954041,3140.5,3140.2,0.62885102]
[1736813049743,3.74954041,3140.9,3140.8,3.1839]
[1736813050131,3.74954041,3140.9,3140.8,3.2064]
[1736813050442,3.74954041,3141.3,3141.2,3.1834]
[1736813050608,3.74954041,3141.3,3141.2,3.1984]
[1736813050805,3.74954041,3141.3,3141.0,3.18366]
[1736813051149,3.74954041,3141.3,3141.1,3.18355]
[1736813051350,3.74954041,3141.3,3140.9,3.18374]
[1736813051668,3.74954041,3141.0,3140.6,35.0]
[1736813051822,0.795,3140.9,3140.4,9.09215475]
[1736813052158,3.74954041,3140.6,3140.4,8.44425]
[1736813052362,3.74954041,3140.6,3140.5,3.1992]
[1736813058363,3.74954041,3140.6,3140.5,0.015]
[1736813058763,3.74954041,3140.6,3140.5,3.1992]
[1736813059532,3.74954041,3140.6,3140.3,3.24261919]
[1736813059736,3.74954041,3140.6,3140.3,0.05822919]
[1736813060353,3.74954041,3140.6,3140.3,3.24254919]
[1736813060869,3.74954041,3140.6,3140.5,3.2067]
[1736813061018,3.74954041,3141.0,3140.9,3.1987]
[1736813061221,3.74954041,3141.0,3140.9,2.9499]
[1736813061854,3.74954041,3141.0,3140.9,2.9574]
[1736813062047,3.74954041,3141.0,3140.9,3.7406]
[1736813062364,3.74954041,3141.0,3140.9,2.9349]
[1736813062528,3.74954041,3141.0,3140.8,5.26]
[1736813063165,4.12449445,3141.0,3140.8,5.26]
[1736813063362,0.7715,3140.9,3140.4,0.63318428]
[1736813063661,3.74954041,3140.5,3140.2,3.18445]